{"text_format":"1","workbook":"xlsx","n_sheets":3,"sheets":["Interface","Tirage","Carton"],"not_rendered":{"charts":0,"images":18,"macros":1,"external_links":0,"defined_names":3,"comments":0,"pivot_tables":0},"unopened":[],"bounds":{"document_bytes":16777216,"sheet_cells":100000,"rows_first":2000,"rows_last":500,"rows_between":2000,"halvings":0,"cell_chars":16384,"cell_head_chars":4096},"cells_cut":0,"cells_raw":0,"read":"whole","date_system":"1900"}

{"sheet":"Interface","index":0,"n_rows":24,"n_cols":22,"rows_kept":24,"cut":false,"hidden":false,"merged":[[0,2,0,20],[23,16,23,20],[21,1,22,3],[23,0,24,5],[23,6,23,7],[4,10,5,11],[23,8,23,13],[22,6,22,13],[2,10,3,11],[2,16,3,17],[2,13,3,14],[4,13,5,14],[2,2,2,4],[4,2,4,4],[5,2,5,4],[3,2,3,4],[4,16,5,17],[7,23,8,23],[1,23,4,23],[5,23,6,23],[23,21,23,22],[17,21,20,22],[5,21,14,22]]}
[null,null,{"$f":"Carton!AD9","v":"Jeu du 421"}]
[]
[null,null,"Joueurs",null,null,{"$f":"Tirage!AC1","v":1},{"$f":"Tirage!AD1","v":2},{"$f":"Tirage!AE1","v":3},{"$f":"Tirage!AF1","v":4},null,"Joueurs",null,null,"Lancer N°",null,null,"Score"]
[null,null,"Participant",null,null,"oui","oui"]
[null,null,"Solde jetons",null,null,{"$f":"Tirage!AC3","v":10},{"$f":"Tirage!AD3","v":10},{"$f":"Tirage!AE3","v":10},{"$f":"Tirage!AF3","v":10},null,{"$f":"+Tirage!AH1","v":1},null,null,{"$f":"Tirage!AH2","v":1},null,null,{"$f":"Tirage!AH5","v":0}]
[null,null,"Score",null,null,{"$f":"Tirage!AC4","v":0},{"$f":"Tirage!AD4","v":0},{"$f":"Tirage!AE4","v":0},{"$f":"Tirage!AF4","v":0}]
[]
[]
[]
[]
[]
[]
[]
[]
[]
[]
[]
[]
[]
[]
[]
[null,"N° Série :"]
[null,null,null,null,null,null,"Développer par le"]
[{"$f":"Carton!AD13","v":"SR-2020-01-0006-AM"},null,null,null,null,null,"Site :",null,{"$f":"Carton!AD14","v":"Mich-Logiciel.fr"},null,null,null,null,null,null,null,"Version : ",null,null,null,null,{"$f":"Carton!AD11","v":"2,08"}]

{"sheet":"Tirage","index":1,"n_rows":63,"n_cols":44,"rows_kept":63,"cut":false,"hidden":false,"merged":[[62,40,63,43],[49,40,49,43],[51,40,51,43],[53,40,54,43],[56,40,58,43],[46,40,46,43],[47,40,47,43],[2,43,4,43],[5,43,7,43],[0,26,6,26],[25,40,25,41],[17,40,19,43]]}
[2,4,1,{"$f":"(A1*100)+(B1*10)+C1","v":241},null,{"$f":"SUM(F2:F7)","v":10},{"$f":"IF($D$1=G2,G8,0)","v":0},null,{"$f":"SUM(I2:I7)","v":0},null,{"$f":"SUM(K2:K7)","v":0},null,{"$f":"SUM(M2:M7)","v":0},null,{"$f":"SUM(O2:O7)","v":0},null,{"$f":"SUM(Q2:Q7)","v":0},null,{"$f":"SUM(S2:S7)","v":0},null,{"$f":"SUM(U2:U7)","v":0},null,{"$f":"SUM(W2:W7)","v":0},null,{"$f":"SUM(Y2:Y7)","v":0},{"$f":"SUM(F1:Y1)","v":10},{"$f":"IF(Z1,Z1,1)","v":10},"Joueurs",1,2,3,4,"Joueurs",1,null,"N","Score","Participé","Points",null,"Valeur des combinaisons en jetons au 421 :"]
[6,6,4,{"$f":"AA1","v":10},421,{"$f":"IF($D$1=E2,$E$8,0)","v":0},111,116,{"$f":"IF($D$1=H2,$H$8,0)","v":0},115,{"$f":"IF($D$1=J2,$J$8,0)","v":0},114,{"$f":"IF($D$1=L2,$L$8,0)","v":0},113,{"$f":"IF($D$1=N2,$N$8,0)","v":0},112,{"$f":"IF($D$1=P2,$P$8,0)","v":0},123,{"$f":"IF($D$1=R2,$R$8,0)","v":0},234,{"$f":"IF($D$1=T2,$T$8,0)","v":0},345,{"$f":"IF($D$1=V2,$R$8,0)","v":0},456,{"$f":"IF($D$1=X2,$T$8,0)","v":0},null,null,"Participé",1,1,0,0,"Lancer",1,null,2,{"$f":"$AD$4","v":0},1,-10,null,"Combinaisons","Valeurs en jetons"]
[3,2,2,null,124,{"$f":"IF($D$1=E3,$E$8,0)","v":0},null,161,{"$f":"IF($D$1=H3,$H$8,0)","v":0},151,{"$f":"IF($D$1=J3,$J$8,0)","v":0},141,{"$f":"IF($D$1=L3,$L$8,0)","v":0},131,{"$f":"IF($D$1=N3,$N$8,0)","v":0},121,{"$f":"IF($D$1=P3,$P$8,0)","v":0},132,0,243,0,354,0,465,0,null,null,"Nb de Jetons",10,10,10,10,"Score",{"$f":"AA1","v":10},null,1,{"$f":"$AC$4","v":0},{"$f":"$AC$2","v":1},10,null,421,"10 jetons",null,"La combinaison 2,2,1 est appelée « nénette ». C’est la plus faible des combinaisons. Peu importe la meilleure combinaison qui a été réalisée, celui qui fait une « nénette » reçoit d’office 2 jetons."]
[5,1,6,null,412,0,null,611,0,511,0,411,0,311,0,211,0,213,0,324,0,435,0,546,0,null,null,"Score",0,0,0,0,"Jetons",10,null,3,{"$f":"$AE$4","v":0},{"$f":"$AE$2","v":0},0,null,"3 As","7 jetons"]
[4,3,5,null,142,0,null,666,0,555,0,444,0,333,0,222,0,231,0,342,0,453,0,564,0,null,null,"Lancer",{"$f":"IF($AH$1=1,$AH$2,\" \")","v":1},{"$f":"IF($AH$1=2,$AH$2,\" \")","v":" "},{"$f":"IF($AH$1=3,$AH$2,\" \")","v":" "},{"$f":"IF($AH$1=4,$AH$2,\" \")","v":" "},null,0,null,4,{"$f":"$AF$4","v":0},{"$f":"$AF$2","v":0},0,null,"2 As – Six /ou/ 3 Six","6 jetons"]
[1,5,3,null,214,0,null,777,0,777,0,777,0,777,0,777,0,312,0,423,0,534,0,645,0,null,null,"nénette",{"$f":"IF($AH$1=1,IF(AC5=4,$AB$10,0),0)","v":0},{"$f":"IF($AH$1=2,IF(AD5=4,$AB$10,0),0)","v":0},{"$f":"IF($AH$1=3,IF(AE5=4,$AB$10,0),0)","v":0},{"$f":"IF($AH$1=4,IF(AF5=4,$AB$10,0),0)","v":0},null,null,null,null,null,null,null,null,"2 As – Cinq /ou/ 3 Cinq","5 jetons",null,"Le but est d’être le premier joueur à ne plus avoir de jetons. la meilleure combinaison du tour donne ses jetons à la plus faible. Lorsqu’un joueur n’a plus de jetons la partie se termine et il est déclaré vainqueur."]
[null,null,null,null,241,10,null,777,0,777,0,777,0,777,0,777,0,321,0,432,0,543,0,654,0,null,null,0,0,0,0,0,null,null,null,null,null,null,null,null,"2 As – Quatre  /ou/ 3 Quatre","4 jetons"]
[null,null,null,null,10,null,7,6,{"$f":"IF($D$1=H8,6,0)","v":0},5,null,4,null,3,null,2,null,2,null,2,null,2,null,2,null,null,1,"Solde jetons",{"$f":"AC3+AC7+AC9","v":10},{"$f":"AD3+AD7+AD9","v":10},10,10,null,null,null,null,null,null,null,null,"2 As – Trois  /ou/ 3 Trois","3 jetons"]
[null,null,null,null,null,null,null,null,null,null,null,null,null,null,null,null,null,null,null,null,null,null,null,null,null,null,null,null,0,0,0,0,null,null,null,null,null,null,null,null,"2 as –deux  /ou/ 3 deux","2 jetons"]
[null,null,null,null,null,null,null,null,null,null,null,null,null,null,null,null,null,null,null,null,null,null,null,null,null,null,null,{"$f":"SUM(AB11:AB16)","v":0},null,null,null,null,null,null,null,null,null,null,null,null,"Une suite (1,2,3 ou 6,5,4 par exemple)","2 jetons"]
[null,null,null,null,null,null,null,null,null,null,null,null,null,null,null,null,null,null,null,null,null,null,null,null,null,null,221,{"$f":"IF($D$1=AA11,$AA$14,0)","v":0},null,null,null,null,null,null,null,null,null,null,null,null,"Toutes les autres combinaisons (Du + au -)","1 jeton"]
[null,null,null,null,null,null,null,null,null,null,null,null,null,null,null,null,null,null,null,null,null,null,null,null,null,null,122,{"$f":"IF($D$1=AA12,$AA$14,0)","v":0}]
[null,null,null,null,null,null,null,null,null,null,null,null,null,null,null,null,null,null,null,null,null,null,null,null,null,null,212,0,null,null,null,null,null,null,null,null,null,null,null,null,"Pour jouer au 421, il vous faut :"]
[null,null,null,null,null,null,null,null,null,null,null,null,null,null,null,null,null,null,null,null,null,null,null,null,null,null,-2,null,null,null,null,null,null,null,null,null,null,null,null,null,"§  Être minimum deux joueurs."]
[null,null,null,null,null,null,null,null,null,null,null,null,null,null,null,null,null,null,null,null,null,null,null,null,null,null,null,null,null,null,null,null,null,null,null,null,null,null,null,null,"§  3 dés"]
[null,null,null,null,null,null,null,null,null,null,null,null,null,null,null,null,null,null,null,null,null,null,null,null,null,null,null,null,null,null,null,null,null,null,null,null,null,null,null,null,"Commencer une partie de 421 :"]
[]
[null,null,null,null,null,null,null,null,null,null,null,null,null,null,null,null,null,null,null,null,null,null,null,null,null,null,null,null,null,null,null,null,null,null,null,null,null,null,null,null,"Pour commencer une partie de 421, il faut dans un premier temps déterminer le joueur qui commencera la partie. Pour ce faire, il faut lancer une partie de dés entre les joueurs. Celui qui fait le plus petit score ou le plus grand score lance la partie, c’est à vous de décider au départ. Chaque joueur lance les dés tour à tour en respectant le sens des aiguilles d’une montre."]
[]
[]
[]
[null,null,null,null,null,null,null,null,null,null,null,null,null,null,null,null,null,null,null,null,null,null,null,null,null,null,null,null,null,null,null,null,null,null,null,null,null,null,null,null,"Au 421, on respecte cet ordre : as, six, cinq, quatre, trois et deux. L’as étant le plus fort."]
[]
[null,null,null,null,null,null,null,null,null,null,null,null,null,null,null,null,null,null,null,null,null,null,null,null,null,null,null,null,null,null,null,null,null,null,null,null,null,null,null,null,"Voici les combinaisons du 421 par ordre de valeur. De la meilleure combinaison à la moins bonne."]
[]
[null,null,null,null,null,null,null,null,null,null,null,null,null,null,null,null,null,null,null,null,null,null,null,null,null,null,null,null,null,null,null,null,null,null,null,null,null,null,null,null,"Ordre des combinaisons"]
[null,null,null,null,null,null,null,null,null,null,null,null,null,null,null,null,null,null,null,null,null,null,null,null,null,null,null,null,null,null,null,null,null,null,null,null,null,null,null,null,"N°1",421]
[null,null,null,null,null,null,null,null,null,null,null,null,null,null,null,null,null,null,null,null,null,null,null,null,null,null,null,null,null,null,null,null,null,null,null,null,null,null,null,null,"N°2","3 As"]
[null,null,null,null,null,null,null,null,null,null,null,null,null,null,null,null,null,null,null,null,null,null,null,null,null,null,null,null,null,null,null,null,null,null,null,null,null,null,null,null,"N°3","2 As – Six"]
[null,null,null,null,null,null,null,null,null,null,null,null,null,null,null,null,null,null,null,null,null,null,null,null,null,null,null,null,null,null,null,null,null,null,null,null,null,null,null,null,"N°4","3 Six"]
[null,null,null,null,null,null,null,null,null,null,null,null,null,null,null,null,null,null,null,null,null,null,null,null,null,null,null,null,null,null,null,null,null,null,null,null,null,null,null,null,"N°5","2 As – Cinq"]
[null,null,null,null,null,null,null,null,null,null,null,null,null,null,null,null,null,null,null,null,null,null,null,null,null,null,null,null,null,null,null,null,null,null,null,null,null,null,null,null,"N°6","3 Cinq"]
[null,null,null,null,null,null,null,null,null,null,null,null,null,null,null,null,null,null,null,null,null,null,null,null,null,null,null,null,null,null,null,null,null,null,null,null,null,null,null,null,"N°7","2 As – Quatre"]
[null,null,null,null,null,null,null,null,null,null,null,null,null,null,null,null,null,null,null,null,null,null,null,null,null,null,null,null,null,null,null,null,null,null,null,null,null,null,null,null,"N°8","3 Quatre"]
[null,null,null,null,null,null,null,null,null,null,null,null,null,null,null,null,null,null,null,null,null,null,null,null,null,null,null,null,null,null,null,null,null,null,null,null,null,null,null,null,"N°9","2 As – Trois"]
[null,null,null,null,null,null,null,null,null,null,null,null,null,null,null,null,null,null,null,null,null,null,null,null,null,null,null,null,null,null,null,null,null,null,null,null,null,null,null,null,"N°10","3 Trois"]
[null,null,null,null,null,null,null,null,null,null,null,null,null,null,null,null,null,null,null,null,null,null,null,null,null,null,null,null,null,null,null,null,null,null,null,null,null,null,null,null,"N°11","2 As – Deux"]
[null,null,null,null,null,null,null,null,null,null,null,null,null,null,null,null,null,null,null,null,null,null,null,null,null,null,null,null,null,null,null,null,null,null,null,null,null,null,null,null,"N°12","3 Deux"]
[null,null,null,null,null,null,null,null,null,null,null,null,null,null,null,null,null,null,null,null,null,null,null,null,null,null,null,null,null,null,null,null,null,null,null,null,null,null,null,null,"N°13","Six – Cinq – Quatre"]
[null,null,null,null,null,null,null,null,null,null,null,null,null,null,null,null,null,null,null,null,null,null,null,null,null,null,null,null,null,null,null,null,null,null,null,null,null,null,null,null,"N°14","Cinq – Quatre – Trois"]
[null,null,null,null,null,null,null,null,null,null,null,null,null,null,null,null,null,null,null,null,null,null,null,null,null,null,null,null,null,null,null,null,null,null,null,null,null,null,null,null,"N°15","Quatre – Trois – Deux"]
[null,null,null,null,null,null,null,null,null,null,null,null,null,null,null,null,null,null,null,null,null,null,null,null,null,null,null,null,null,null,null,null,null,null,null,null,null,null,null,null,"N°16","Trois – Deux – As"]
[]
[null,null,null,null,null,null,null,null,null,null,null,null,null,null,null,null,null,null,null,null,null,null,null,null,null,null,null,null,null,null,null,null,null,null,null,null,null,null,null,null,"Comment jouer au 421 :"]
[]
[null,null,null,null,null,null,null,null,null,null,null,null,null,null,null,null,null,null,null,null,null,null,null,null,null,null,null,null,null,null,null,null,null,null,null,null,null,null,null,null,"On joue généralement le 421 en deux manches, la « charge » et la « décharge ». L’ensemble des jetons est appelé le « pot »."]
[null,null,null,null,null,null,null,null,null,null,null,null,null,null,null,null,null,null,null,null,null,null,null,null,null,null,null,null,null,null,null,null,null,null,null,null,null,null,null,null,"Lors de la première partie du jeu, la « charge », les joueurs vont se répartir les 21 jetons entre eux en espérant en récupérer le moins possible."]
[null,null,null,null,null,null,null,null,null,null,null,null,null,null,null,null,null,null,null,null,null,null,null,null,null,null,null,null,null,null,null,null,null,null,null,null,null,null,null,null,"Lors de la deuxième partie, la « décharge », les joueurs devront se débarrasser du plus de jetons possible."]
[]
[null,null,null,null,null,null,null,null,null,null,null,null,null,null,null,null,null,null,null,null,null,null,null,null,null,null,null,null,null,null,null,null,null,null,null,null,null,null,null,null,"Pour ce logiciel nous allons jouées que la décharge avec 10 jetons à la première partie puis pour les partie suivantes vous définirez le nombre de jetons pas joueurs"]
[]
[null,null,null,null,null,null,null,null,null,null,null,null,null,null,null,null,null,null,null,null,null,null,null,null,null,null,null,null,null,null,null,null,null,null,null,null,null,null,null,null,"Le 1° joueur démarrera la partie en lançant les trois dés. Pour chacun des trois dés il peut choisir de relancer ou non. S’il ne relance pas il aura effectué un seul lancer. Le joueur peut, si il le désire, relancer une deuxième et une troisième fois tout ou partie des trois dés. Ceci va influer sur le reste de la manche car les autres joueurs devront effectuer le même nombre de lancers que le premier joueur."]
[]
[null,null,null,null,null,null,null,null,null,null,null,null,null,null,null,null,null,null,null,null,null,null,null,null,null,null,null,null,null,null,null,null,null,null,null,null,null,null,null,null,"Ainsi, si le premier joueur à lancé trois fois les dés les autres joueurs devront faire de même. Si le deuxième joueur réussis un 421 dès son premier lancer, il devra tout de même relancer les dés pour respecter les trois lancers."]
[]
[]
[null,null,null,null,null,null,null,null,null,null,null,null,null,null,null,null,null,null,null,null,null,null,null,null,null,null,null,null,null,null,null,null,null,null,null,null,null,null,null,null,"Dans certaines variantes cette règle est assouplie. En effet, lorsqu’un joueur est satisfait de sa combinaison il peut taper sur la table en disant « le bon ». Cela lui permet de valider sa combinaison sans avoir à faire le même nombre de lancer que le premier joueur. Bien sûr, le nombre maximum de lancer est toujours de trois. Ceci doit être annoncé avant le début de la partie pour que tous les joueurs soit d’accord sur les règles."]
[]
[]
[]
[null,null,null,null,null,null,null,null,null,null,null,null,null,null,null,null,null,null,null,null,null,null,null,null,null,null,null,null,null,null,null,null,null,null,null,null,null,null,null,null,"Comment gagner au 421 :"]
[]
[null,null,null,null,null,null,null,null,null,null,null,null,null,null,null,null,null,null,null,null,null,null,null,null,null,null,null,null,null,null,null,null,null,null,null,null,null,null,null,null,"Pour gagner une partie de 421, il faut être le premier joueur à ne plus avoir de jetons . Il faut savoir qu’il existe de nombreuses variantes à la règle de base. Ainsi, il est toujours possible d’ajouter des règles pour pimenter le jeu du 421."]

{"sheet":"Carton","index":2,"n_rows":16,"n_cols":31,"rows_kept":16,"cut":false,"hidden":true,"merged":[[14,29,14,30],[15,29,15,30],[11,29,11,30],[12,29,12,30],[13,29,13,30]]}
[]
[]
[]
[]
[]
[null,null,null,null,null,null,null,null,null,null,null,null,null,null,null,null,null,null,null,null,null,null,null,null,null,null,null,null,null,null,0]
[]
[]
[null,null,null,null,null,null,null,null,null,null,null,null,null,null,null,null,null,null,null,null,null,null,null,null,null,null,null,null,null,"Jeu du 421"]
[]
[null,null,null,null,null,null,null,null,null,null,null,null,null,null,null,null,null,null,null,null,null,null,null,null,null,null,null,null,null,"2,08"]
[]
[null,null,null,null,null,null,null,null,null,null,null,null,null,null,null,null,null,null,null,null,null,null,null,null,null,null,null,null,null,"SR-2020-01-0006-AM"]
[null,null,null,null,null,null,null,null,null,null,null,null,null,null,null,null,null,null,null,null,null,null,null,null,null,null,null,null,null,"Mich-Logiciel.fr"]
[null,null,null,null,null,null,null,null,null,null,null,null,null,null,null,null,null,null,null,null,null,null,null,null,null,null,null,null,null,{"$f":"LEN(AD9)","v":10}]
[null,null,null,null,null,null,null,null,null,null,null,null,null,null,null,null,null,null,null,null,null,null,null,null,null,null,null,null,null,{"$f":"RIGHT(AD9,AD15-0)","v":"Jeu du 421"}]